Cogmind - Beta 9.2 @@@ ROGUE MODE // 2019.11.15 @ 20:31:28 Player: Mountainmanden Result: Destroyed by D-53 Grenadier with Mini Grenade Launcher Performance ------------- Evolutions (0) 0 Regions Visited (2) 400 Robots Destroyed (12) 60 Value Destroyed (325) 325 Prototype IDs (0) 0 Alien Tech Used (0) 0 Bonus (0) 0 TOTAL SCORE: 785 Bonus ------- None Cogmind --------- Core Integrity 0/250 Matter 300/300 Energy 100/100 System Corruption 0% Temperature Cool (0) Movement Walking (150) Ox1 Location -10/Mines Parts ------- > --- POWER (1) -------- (None) > --- PROPULSION (2) --- Aluminum Leg Aluminum Leg > --- UTILITY (2) ------ Large Storage Unit Large Storage Unit > --- WEAPON (2) ------- (None) > --- INVENTORY (16) --- Ion Engine Ion Engine Aluminum Leg Aluminum Leg Aluminum Leg Aluminum Leg Aluminum Leg Improved Heat Sink Small Storage Unit Terrain Scan Processor Utility Shielding Grenade Launcher Grenade Launcher Rocket Launcher Peak State ------------ > --- POWER ------------ Light Nuclear Core > --- PROPULSION ------- Aluminum Leg Aluminum Leg > --- UTILITY ---------- Large Storage Unit Large Storage Unit > --- WEAPON ----------- Medium Laser Shock Bomb Launcher > --- INVENTORY -------- Ion Engine Aluminum Leg Aluminum Leg Improved Heat Sink Small Storage Unit Terrain Scan Processor Utility Shielding Grenade Launcher Grenade Launcher Rocket Launcher [Rating: 12] Favorites ----------- Power Ion Engine Engine Ion Engine Power Core Light Nuclear Core Propulsion Aluminum Leg Leg Aluminum Leg Utility Large Storage Unit Storage Large Storage Unit Weapon Medium Laser Energy Gun Medium Laser Launcher Grenade Launcher Build | -11 -10 -10 ------- Run | Scr Mat Min Slots Evolved . | . . . Power . | . . . Propulsion . | . . . Utility . | . . . Weapon . | . . . Parts Attached 22 | 6 9 7 Power 3 | 1 1 1 Engine 2 | 1 1 . Core 1 | . . 1 Reactor . | . . . Propulsion 8 | 2 3 3 Treads . | . . . Leg 8 | 2 3 3 Wheel . | . . . Hover . | . . . Flight . | . . . Utility 3 | 1 2 . Device . | . . . Storage 3 | 1 2 . Processor . | . . . Hackware . | . . . Protection . | . . . Artifact . | . . . Weapon 8 | 2 3 3 Energy Gun 5 | 2 1 2 Energy Cannon . | . . . Ballistic Gun . | . . . Ballistic Cannon . | . . . Launcher 3 | . 2 1 Special Weapon . | . . . Impact Weapon . | . . . Slashing Weapon . | . . . Piercing Weapon . | . . . Special Melee Weapon . | . . . Unidentified Prototypes . | . . . Parts Lost 8 | . 2 6 Power 3 | . 1 2 Propulsion 1 | . . 1 Utility . | . . . Weapon 4 | . 1 3 Highest Loss Streak 3 | . 2 3 Average Slot Usage (%) 91 | . 98 86 Engine 8 | . 13 5 Core 2 | . . 4 Leg 26 | . 28 24 Storage 27 | . 27 28 Energy Gun 18 | . 19 17 Launcher 5 | . 7 4 Naked Turns . | . . . Heaviest Build 45 | 13 43 45 Greatest Support 20 | 20 20 20 Greatest Overweight (x) 4 | . 4 3 Average Overweight (x) 1 | . 1 2 Largest Inventory Capacity 16 | 6 16 16 Average Capacity 15 | 5 15 16 Most Carried 14 | . 9 14 Average Carried 7 | . 4 10 Final Capacity 16 | 6 16 16 Final Carried 14 | . 9 14 Class Distribution -------------------- 100% | Mutant Dominant Class ---------------- Mutant | -10/Materials Mutant | -10/Mines Resources | -11 -10 -10 ----------- Run | Scr Mat Min Matter Collected 451 | 198 158 95 Remotely . | . . . Salvage Created 399 | . 312 87 Parts 22 | . 21 1 Haulers Intercepted 1 | . 1 . Recyclers Shooed 1 | . 1 . Parts Field Recycled . | . . . Retrieved Matter . | . . . Parts Self-Destructed . | . . . Prevented . | . . . Kills | -11 -10 -10 ------- Run | Scr Mat Min Combat Hostiles Destroyed 10 | . 8 2 Guns 7 | . 5 2 AOE 3 | . 3 . Classes Destroyed 4 | . 4 . Builder 1 | . 1 . Hauler 1 | . 1 . Swarmer 2 | . 2 . Grunt 8 | . 6 2 Best Kill Streak 6 | . 6 1 Combat Bots Only 4 | . 4 1 Max Kills in Single Turn 3 | . 3 1 Gunslinging . | . . . Exploded 2 | . 2 . Melee . | . . . Uniques/NPCs Destroyed . | . . . Combat | -11 -10 -10 -------- Run | Scr Mat Min Damage Taken 1188 | . 354 834 Core 266 | . 69 197 Absorbed by Shields . | . . . Core Remaining (%) 100 | 100 . . Volleys Fired 48 | . 26 22 Largest 2 | . 2 2 Hottest 100 | . 100 100 Shots Fired 71 | . 41 30 Gun 64 | . 35 29 Cannon . | . . . Launcher 7 | . 6 1 Special . | . . . Kinetic . | . . . Thermal 64 | . 35 29 Explosive 6 | . 6 . Electromagnetic 1 | . . 1 Robot Hit Streak 7 | . 6 7 Robot Miss Streak 3 | . 3 2 Penetration Max . | . . . Secondary Targets 1 | . . 1 Max Gunslinging Chain 1 | . . 1 Shots Hit Robots 44 | . 21 23 Core Hits 25 | . 20 5 Critical Hits . | . . . Critical Kills . | . . . Critical Parts Destroyed . | . . . Melee Attacks . | . . . Impact . | . . . Slashing . | . . . Piercing . | . . . Sneak Attacks . | . . . Combat Hostiles . | . . . Follow-up Attacks . | . . . Damage Inflicted 821 | . 527 294 Guns 512 | . 251 261 Cannons . | . . . Explosions 300 | . 275 25 Melee . | . . . Ramming 9 | . 1 8 Kinetic . | . . . Thermal 512 | . 251 261 Explosive 275 | . 275 . Electromagnetic 25 | . . 25 Impact . | . . . Slashing . | . . . Piercing . | . . . Highest Corruption . | . . . Average Corruption . | . . . Corruption Purged . | . . . Overload Shots . | . . . Overflow Damage 10 | . 10 . Projectiles . | . . . Explosions 10 | . 10 . Melee . | . . . Knockbacks . | . . . Impact . | . . . Kinetic . | . . . Secondary . | . . . Self-Inflicted Damage 23 | . 22 1 Shots 1 | . 1 . Rammed 2 | . 1 1 Targets Rammed 4 | . 1 3 Kicked 2 | . . 2 Crushed . | . . . Highest Temperature 344 | . 344 330 Average Temperature 144 | . 171 111 Received Heat Transfer 369 | . 186 183 Effects 3 | . 2 1 Interference 2 | . 2 . Damage (minor) 1 | . . 1 Siege Activations . | . . . Robots Corrupted . | . . . Combat Hostiles . | . . . Parts Fried . | . . . Impact Corruptions . | . . . Robots Melted . | . . . Combat Hostiles . | . . . Parts Melted 1 | . 1 . Heat Transferred 1517 | . 740 777 Parts Sabotaged . | . . . Parts Stolen . | . . . Parts Stripped . | . . . Power Chain Reactions . | . . . Missiles Intercepted . | . . . Alert | -11 -10 -10 ------- Run | Scr Mat Min Peak Influence 143 | . 143 51 Average Influence 28 | . 45 17 Maximum Alert Level . | . . . Low Security (%) 100 | 100 100 100 Level 1 . | . . . Level 2 . | . . . Level 3 . | . . . Level 4 . | . . . Level 5 . | . . . High Security . | . . . Max Security . | . . . Squads Dispatched 4 | . 3 1 Investigation 2 | . 1 1 Extermination . | . . . Reinforcement 2 | . 2 . Assault . | . . . Garrison . | . . . Intercept . | . . . Construction Impeded . | . . . Haulers Reinforced . | . . . Stealth | -11 -10 -10 --------- Run | Scr Mat Min Distress Signals 1 | . 1 . Communications Jammed . | . . . Distress Signals . | . . . Times Spotted 20 | . 14 6 Peak Tracking Total 4 | . 4 2 Tactical Retreats 3 | . . 3 Traps | -11 -10 -10 ------- Run | Scr Mat Min Traps Triggered 1 | . 1 . Indirectly . | . . . Trap Hack Attempts . | . . . Triggered . | . . . Disarmed . | . . . Reprogrammed . | . . . Reused . | . . . Traps Extracted . | . . . Installed . | . . . Triggered . | . . . Machines | -11 -10 -10 ---------- Run | Scr Mat Min Machines Disabled 1 | . 1 . Max in Single Turn 1 | . 1 . Machines Sabotaged . | . . . Garrisons Compromised . | . . . Overloaded Fab Kills . | . . . Fab Network Shutdowns . | . . . Hacking | -11 -10 -10 --------- Run | Scr Mat Min Machines Accessed 3 | . 2 1 Terminals 1 | . 1 . Fabricators . | . . . Repair Stations 1 | . 1 . Recycling Units . | . . . Scanalyzers . | . . . Garrison Access . | . . . Total Hacks 6 | . 5 1 Successful 3 | . 2 1 Failed 3 | . 3 . Catastrophic . | . . . Database Lockouts . | . . . Manual . | . . . Terminals 3 | . 3 . Fabricators . | . . . Repair Stations 2 | . 2 . Recycling Units . | . . . Scanalyzers . | . . . Garrison Access . | . . . Terminal Hacks 1 | . . 1 Open Door 1 | . . 1 Fabricator Hacks . | . . . Repair Station Hacks 2 | . 2 . Scan Component 1 | . 1 . Repair 1 | . 1 . Recycling Unit Hacks . | . . . Scanalyzer . | . . . Garrison Access Hacks . | . . . Unauthorized Hacks . | . . . Terminals . | . . . Fabricators . | . . . Repair Stations . | . . . Recycling Units . | . . . Scanalyzers . | . . . Garrison Access . | . . . Data Cores Recovered . | . . . Used . | . . . Hacking Detections 1 | . 1 . Full Trace Events 1 | . 1 . Feedback Events . | . . . Feedback Blocked . | . . . Robot Schematics Acquired . | . . . Robots Built . | . . . Matter . | . . . Time . | . . . Total Robot Build Rating . | . . . Part Schematics Acquired . | . . . Parts Built . | . . . Matter . | . . . Time . | . . . Total Part Build Rating . | . . . Parts Repaired 1 | . 1 . Time 26 | . 26 . Parts Recycled . | . . . Recycled Matter . | . . . Retrieved Matter . | . . . Retrieved Components . | . . . Parts Scanalyzed . | . . . Part Schematics Acquired . | . . . Parts Damaged . | . . . Bothacking | -11 -10 -10 ------------ Run | Scr Mat Min Used RIF Installer . | . . . Robots Hacked . | . . . Non-combat . | . . . Combat . | . . . Robot Hacks Applied . | . . . Relay Couplers Released . | . . . Robots Rewired . | . . . Allies Hacked . | . . . Hacks Repelled . | . . . Allies | -11 -10 -10 -------- Run | Scr Mat Min Total Allies . | . . . Largest Group . | . . . Highest-Rated Group . | . . . Highest-Rated Ally . | . . . Total Orders . | . . . Ally Attacks . | . . . Total Damage . | . . . Kills . | . . . Allies Corrupted . | . . . Allies Melted . | . . . Intel | -11 -10 -10 ------- Run | Scr Mat Min Robot Analysis Total . | . . . Derelict Logs Recovered 2 | . . 2 Drone Launches . | . . . Drone Recoveries . | . . . Exploration | -11 -10 -10 ------------- Run | Scr Mat Min Turns Passed 1325 | 61 546 718 Spaces Moved 638 | 49 241 348 Core 8 | 8 . . Treads . | . . . Legs 630 | 41 241 348 Wheels . | . . . Hover . | . . . Flight . | . . . Fastest Speed 50 | 50 120 150 Average Speed 173 | 108 177 180 Slowest Speed 240 | 120 240 210 Overloaded Moves . | . . . Propulsion Burnouts . | . . . Robots Hopped . | . . . Cave-ins Triggered . | . . . Exploration Rate (%) 26 | 3 29 47 Regions Visited 2 Branch Regions 1 Pre-discovered Areas 1 | . . 1 Known Exits Taken . | . . . Unknown Exits Taken 2 | 1 1 . Scrap Searched 1 | . . 1 Spaces Dug . | . . . Terrain Destroyed 34 | . 34 . Melee . | . . . Projectile . | . . . AOE 34 | . 34 . Actions | -11 -10 -10 --------- Run | Scr Mat Min Total 770 | 54 314 402 Wait 47 | . 29 18 Move 636 | 48 240 348 Hop . | . . . Pick Up 12 | . 8 4 Fast Attach 10 | 6 2 2 Attach 3 | . 2 1 Detach . | . . . Swap 9 | . 5 4 Drop 1 | . 1 . Fire 48 | . 26 22 Melee . | . . . Ram . | . . . Kick 4 | . 1 3 Crush . | . . . Escape Stasis . | . . . Rewire . | . . . Trap . | . . . Miscellaneous . | . . . Route ------- -11/Scrapyard -10/Materials (discovered 2 exits: *Min x2) -10/Mines History --------- Turn | Location | Event 4 | -11/Scrapyard | Discovered new exit (range 16) 62 | -11/Scrapyard | Entered Materials 268 | -10/Materials | Discovered new exit (range 16) 303 | -10/Materials | Build established: Mutant 381 | -10/Materials | Repaired Med. Laser 468 | -10/Materials | Discovered new exit (range 16) 608 | -10/Materials | Entered Mines 609 | -10/Mines | Learned location of Storage (-9) 662 | -10/Mines | Learned Materials security intel 674 | -10/Mines | Assembled infested the area 734 | -10/Mines | Received a Rocket Launcher from a helpful Derelict 865 | -10/Mines | Core integrity fell below 50% 1003 | -10/Mines | Learned Materials terminal intel 1085 | -10/Mines | Met a Derelict shopkeep closing up shop 1323 | -10/Mines | Core integrity fell below 20% 1326 | -10/Mines | Destroyed by D-53 Grenadier with Mini Grenade Launcher Last Messages --------------- Acquired Shock Bomb Launcher. Acquired 4 matter. Acquired 5 matter. Acquired Ion Engine. Acquired 16 matter. Acquired 20 matter. G-47 Trooper destroyed. Acquired Aluminum Leg. Acquired 5 matter. U-05 Engineer lays Concrete. The unstable cave ceiling collapses. U-05 Engineer lays Concrete. Shock Bomb Launcher destroyed. U-05 Engineer lays Concrete. U-05 Engineer destroyed. U-05 Engineer lays Concrete. U-05 Engineer destroyed. Med. Laser destroyed. Lgt. Nuclear Core destroyed. The unstable cave ceiling collapses. Map ----- +----------------------------------------------------+ | ######## #????????????# #?????????????? | | #??????# #????????????# #?????????????? | | #??????# #????######### #?????????????? | | ##??????# #????# ##????????????? | | ???????## #????# # ##???????????? | | ??????## ##???# ########### #???????????? | | ?????## #???# #?????????## #???????????? | | ???### #???# #??????????## ##???????????? | | ??## #???# #???????????# ##????????????? | | ??# #???# #???????????# #?????????????? | | ??# ##??# #???????????## #?????????????? | | ??## #### ##???????????## ##????????????? | | #??## ## ##???????????## ##???????????? | | ##??# #???????????## #???????????? | | #??# #???????????# #???????????? | | ##?## #???????????# ##??????????? | | #??####### #??????????# ! #??????????? | | #????????###### #?????????# % #??????????? | | ##??####???????# ##????????## #??????????? | | #### ##???????########???##%! #??????????? | | ##???##### ##### #??????????? | | ### ##### ##??????????? | | #?## # % #???????????? | | ???## # ##???????????? | | ????## ####??????? ????? | | ?????# @ ## #?????????? ????? | | ?????# #### #?????????? ????? | | ?????# d # #??# #?????????? ????? | | ?????## # ###??# #?????????? ????? | | ??????### ## # ##????# ######????? ????? | | ????????##### # #######?????# #????? ????? | | ????????????#### ###???????????###### #????# #???? | | ???????????????# #??????????????????# #????# #???? | | ???????????????# #???????????#??????# #????# #???? | | ???????????????# ??????????## ????# #????# #???? | | ???????????????###??????????# ### #????# #???? | | ????????????????????????????# #????# #???? | | ????????????????????? #### #????# #???? | | ???????????????????? ???????# #????# ##### | | ?????????????????????# ##???????????# #????# ## # | | ????????????????????????????????????# ###### # | | ????????????????????????????????????# | | ????????????????????????????????????######## ## | | ???????????????????????????????????????????# ### | | ???????????????????????????????????????????# #?# | | ???????????????????????????????????????????# #?## | | ??????????????????????????????????????????? #??## | | ???????????????????????????????????????????# #???? | | ???????????????????????????????????????????# #???? | | ???????????????????????????????????????????# #???? | +----------------------------------------------------+ Best States ------------- Heat Dissipation 25 Energy Generation 14 Energy Capacity 250 Matter Stores 300 Matter Capacity 300 Sight Range 16 Terrain Scan Density 10 Evasion (%) 40 Item Schematics ----------------- None Robot Schematics ------------------ None Fabricated ------------ Nothing Alien Tech Used ----------------- None Achievements -------------- None Challenges ------------ None Game ------ Seed ShadingGravityGun Manual? 0 Play Time 00:16:53 Cumulative 8.5 hours Start 2019.11.15 @ 20:14:06 End 2019.11.15 @ 20:31:28 Sessions 1 Manual Loads 0 Difficulty Rogue Special Mode None Game No. 9 Rogue 7 Adventurer 2 Explorer 0 Win Type - Total 0 Types 0/0/0/0/0/0/0 Lore% 3 Gallery% 11 Achievement% 9 Wizard Run 0 Options --------- ASCII 0 Keyboard 1 Movement Numpad Keybinds 0 Fullscreen 1 Font 18/SmallcapsGlow Map View 76x50 Tactical HUD 0 Map Filters NONE Filters NONE Steam 1 RUN: fc015062-0420-4b49-afb0-b574463a2790